bitfinex/quotes_SOLUSD_20241009
["timestamp","ask_amount","ask_price","bid_price","bid_amount"]
[1728442402589,6.9309,144.28,144.24,6.9325]
[1728442404588,6.9315,144.27,144.23,24.266]
[1728442406102,6.931,144.28,144.23,24.266]
[1728442408805,6.931,144.28,144.24,6.9328]
[1728442409186,15.9853,144.31,144.23,17.3328]
[1728442409399,6.9303,144.3,144.25,6.9322]
[1728442409710,15.9853,144.31,144.23,17.3328]
[1728442409873,15.9853,144.31,144.24,6.9327]
[1728442409874,6.9308,144.29,144.24,6.9327]
[1728442412479,6.931,144.28,144.24,6.9327]
[1728442416305,6.9306,144.29,144.25,6.9323]
[1728442416490,6.9309,144.28,144.23,24.2657]
[1728442416802,6.9309,144.28,144.24,6.9328]
[1728442417915,6.9316,144.27,144.23,17.3328]
[1728442418425,6.9316,144.27,144.23,24.266]
[1728442422302,15.9853,144.31,144.23,24.266]
[1728442422506,15.9853,144.31,144.24,8.31926524]
[1728442422507,6.9311,144.28,144.24,8.31926524]
[1728442424417,6.9311,144.28,144.24,6.9328]
[1728442428107,6.9311,144.28,144.23,24.266]
[1728442439419,6.9305,144.29,144.25,6.932]
[1728442439620,6.93,144.3,144.26,6.9319]
[1728442440323,6.9296,144.31,144.27,8.31752735]
[1728442440819,6.9296,144.31,144.27,1.38612735]
[1728442441223,6.9296,144.31,144.26,6.9317]
[1728442441428,6.9306,144.29,144.25,24.2628]
[1728442442320,23.776884,144.34,144.25,17.3305]
[1728442442321,6.931,144.28,144.25,17.3305]
[1728442444414,6.931,144.28,144.24,6.9327]
[1728442445626,6.931,144.28,144.24,8.31903802]
[1728442446201,6.9306,144.29,144.24,8.31903802]
[1728442449128,6.931,144.28,144.24,6.9327]
[1728442451319,6.931,144.28,144.24,8.31903435]
[1728442452228,6.931,144.28,144.24,6.9327]
[1728442453931,6.931,144.28,144.25,1.38633423]
[1728442454226,6.9306,144.29,144.25,1.38633423]
[1728442454840,6.9306,144.29,144.24,6.9327]
[1728442456039,6.9306,144.29,144.25,6.9322]
[1728442456207,6.9306,144.29,144.25,8.31846426]
[1728442461037,6.9299,144.31,144.26,6.9318]
[1728442463524,6.9299,144.31,144.27,1.38613967]
[1728442464525,6.9299,144.31,144.26,6.9318]
[1728442465351,6.93,144.3,144.26,6.9318]
[1728442465955,6.9305,144.29,144.25,6.9322]
[1728442466826,6.9314,144.27,144.23,6.9332]
[1728442467042,17.3241,144.31,144.21,33.4969]
[1728442467246,6.932,144.26,144.21,33.4969]
[1728442467428,6.932,144.26,144.22,6.9337]
[1728442468050,6.9315,144.27,144.22,6.9337]
[1728442468722,6.9315,144.27,144.23,1.38646829]
[1728442469337,6.9315,144.27,144.22,6.9337]
[1728442470027,6.9315,144.27,144.23,8.31977028]
[1728442471028,6.9315,144.27,144.23,6.9333]
[1728442473043,6.932,144.26,144.21,33.4969]
[1728442473235,30.293784,144.3,144.21,33.4969]
[1728442474139,6.9324,144.25,144.21,40.4311]
[1728442474345,6.932,144.26,144.21,40.4311]
[1728442475251,6.932,144.26,144.22,1.38656526]
[1728442475461,6.932,144.26,144.21,40.4311]
[1728442478749,6.932,144.26,144.22,6.9337]
[1728442480340,6.931,144.28,144.23,6.9329]
[1728442484251,6.5169,144.3,144.23,6.9329]
[1728442484453,6.9314,144.27,144.23,6.9329]
[1728442485038,6.9314,144.27,144.21,33.4969]
[1728442485039,6.9319,144.26,144.22,6.9337]
[1728442486346,6.9324,144.25,144.21,33.4969]
[1728442487662,6.9324,144.25,144.21,40.4311]
[1728442489056,6.9324,144.25,144.21,24.2692]
[1728442489944,17.3266,144.29,144.18,17.3388]
[1728442490146,23.776884,144.28,144.18,17.3388]
[1728442490351,6.9334,144.23,144.19,6.9352]
[1728442498067,6.9341,144.22,144.18,24.2745]
[1728442498987,6.9343,144.21,144.17,22.7388]
[1728442499143,6.9343,144.21,144.17,6.9361]
[1728442499549,6.9339,144.22,144.17,6.9361]
[1728442500751,6.9339,144.22,144.17,8.32309438]
[1728442501778,6.9339,144.22,144.17,6.9361]
[1728442502082,6.3139,144.26,144.19,6.9351]
[1728442502251,6.9329,144.24,144.2,8.32148408]
[1728442502450,6.9329,144.24,144.19,6.9348]
[1728442503649,6.9329,144.24,144.2,1.38679205]
[1728442504250,6.9325,144.25,144.2,8.32149205]
[1728442505381,6.9318,144.27,144.2,1.38679205]
[1728442505586,38.9534,144.3,144.21,6.9342]
[1728442505969,6.9319,144.26,144.21,6.9342]
[1728442507657,6.9315,144.27,144.22,6.9337]
[1728442507869,6.9315,144.27,144.23,8.31963277]
[1728442508068,6.9315,144.27,144.23,6.9331]
[1728442509586,38.9534,144.3,144.21,6.2455]
[1728442509587,15.2216,144.3,144.21,6.2455]
[1728442509757,6.931,144.28,144.23,17.3328]
[1728442509959,6.931,144.28,144.23,24.266]
[1728442511470,32.5466,144.3,144.22,6.9338]
[1728442511675,6.9324,144.25,144.21,13.1797]
[1728442512189,6.9319,144.27,144.21,6.2455]
[1728442512386,6.9319,144.27,144.22,6.9338]
[1728442512970,6.932,144.26,144.22,6.9338]
[1728442513583,6.932,144.26,144.22,8.32033021]
[1728442514193,6.932,144.26,144.21,6.2455]
[1728442514376,6.9328,144.25,144.2,24.2711]
[1728442514578,6.9333,144.24,144.2,17.3365]
[1728442515866,6.9333,144.24,144.2,24.2712]
[1728442516066,6.9333,144.24,144.2,17.3365]
[1728442516975,6.9333,144.24,144.2,18.72327388]
[1728442519490,6.9333,144.24,144.19,6.9352]
[1728442519491,17.328,144.28,144.19,1.38672986]
[1728442519693,6.9336,144.23,144.18,29.4458]
[1728442520389,6.9336,144.23,144.19,1.38683797]
[1728442520587,17.328,144.28,144.19,8.32203797]
[1728442520798,6.9328,144.25,144.2,6.9347]
[1728442521088,6.9329,144.24,144.2,6.9347]
[1728442521796,6.9329,144.24,144.19,1.38683797]
[1728442521797,6.932,144.26,144.22,6.9337]
[1728442521993,6.9324,144.25,144.21,6.9342]
[1728442523083,6.9324,144.25,144.22,1.38665041]
[1728442523697,6.9324,144.25,144.21,6.9342]
[1728442523897,6.9324,144.25,144.2,6.9346]
[1728442524704,6.9324,144.25,144.21,1.38665227]
[1728442526905,6.932,144.26,144.21,8.32055227]
[1728442527073,6.932,144.26,144.22,1.38656257]
[1728442527498,6.932,144.26,144.22,8.32036257]
[1728442527992,6.932,144.26,144.23,1.38653016]
[1728442528489,6.932,144.26,144.22,6.9338]
[1728442529187,6.932,144.26,144.23,1.38652556]
[1728442529678,6.932,144.26,144.22,6.9338]
[1728442530000,6.932,144.26,144.21,24.2695]
[1728442531071,6.9325,144.25,144.21,24.2695]
[1728442531999,17.3267,144.29,144.21,17.3353]
[1728442532199,6.9329,144.24,144.21,17.3353]
[1728442532877,6.9329,144.24,144.19,6.9351]
[1728442533280,6.9329,144.24,144.2,8.32134127]
[1728442533890,6.9329,144.24,144.2,6.9347]
[1728442534110,6.9329,144.24,144.21,1.38664]
[1728442534676,6.9329,144.24,144.2,6.9347]
[1728442537880,6.9329,144.24,144.21,1.38664019]
[1728442538493,6.9329,144.24,144.2,6.9347]
[1728442538687,6.9329,144.24,144.21,1.38663508]
[1728442539816,6.9329,144.24,144.2,6.9347]
[1728442542807,6.9329,144.24,144.21,1.38663791]
[1728442543610,6.9325,144.25,144.21,1.38663791]
[1728442544994,6.9325,144.25,144.21,6.9343]
[1728442546192,6.9325,144.25,144.2,6.9346]
[1728442546604,6.9325,144.25,144.21,1.38663696]
[1728442546810,6.9325,144.25,144.2,6.9346]
[1728442547712,23.776884,144.28,144.18,39.8493]
[1728442547886,6.9334,144.23,144.18,39.8493]
[1728442549020,6.9334,144.23,144.19,6.9352]
[1728442552420,23.776884,144.28,144.18,39.8493]
[1728442552717,16.3769,144.25,144.18,17.3391]
[1728442553197,16.3769,144.25,144.16,6.9366]
[1728442553198,6.9347,144.21,144.16,6.9366]
[1728442554016,6.9347,144.21,144.17,6.936]
[1728442554417,33.7084,144.25,144.15,30.28412457]
[1728442554715,6.9339,144.22,144.18,6.9357]
[1728442555295,6.9339,144.22,144.19,1.38690913]
[1728442555497,6.9334,144.23,144.19,1.38690913]
[1728442556418,6.9334,144.23,144.18,6.9357]
[1728442556618,6.9334,144.23,144.19,1.38691188]
[1728442558723,6.9334,144.23,144.18,6.9357]
[1728442559216,33.7084,144.25,144.18,6.9357]
[1728442559402,6.9345,144.21,144.17,24.2762]
[1728442561299,6.9345,144.21,144.17,17.3401]
[1728442562123,6.9345,144.21,144.17,25.66314668]
[1728442562305,6.9339,144.22,144.17,25.66314668]
[1728442563726,6.9339,144.22,144.17,24.2761]
[1728442565621,23.776884,144.24,144.16,6.9366]
[1728442565829,23.776884,144.24,144.15,6.9368]
[1728442565830,6.9353,144.19,144.15,6.9368]
[1728442566199,6.9349,144.2,144.15,6.9368]
[1728442566407,6.9349,144.2,144.14,39.6966]
[1728442566598,6.9349,144.2,144.16,6.9366]
[1728442568928,16.3769,144.25,144.17,1.38711067]
[1728442569232,16.3769,144.25,144.15,12.94122457]
[1728442569407,6.9329,144.24,144.19,6.9349]
[1728442569611,6.9334,144.23,144.18,17.3388]
[1728442569915,6.9343,144.22,144.18,17.3388]
[1728442570907,6.9343,144.21,144.18,17.3388]
[1728442571109,6.9343,144.21,144.16,6.9366]
[1728442573007,6.9343,144.21,144.17,1.38709221]
[1728442574728,6.9343,144.21,144.16,6.9366]
[1728442578831,6.9343,144.21,144.17,1.38708935]
[1728442580830,6.9343,144.21,144.16,6.9366]
[1728442584623,6.9343,144.21,144.17,1.38708492]
[1728442585329,6.9343,144.21,144.16,6.9366]
[1728442585640,6.9343,144.21,144.17,1.38708375]
[1728442586439,23.776884,144.24,144.16,6.9366]
[1728442586741,6.9348,144.2,144.16,6.9366]
[1728442587153,6.9344,144.21,144.17,1.38712396]
[1728442587445,6.9344,144.21,144.16,6.9366]
[1728442588332,6.9351,144.2,144.15,24.2794]
[1728442590442,6.9351,144.2,144.16,1.38713104]
[1728442590839,6.9351,144.2,144.15,24.2794]
[1728442591041,41.109584,144.24,144.15,17.3424]
[1728442591351,6.9357,144.19,144.15,17.3424]
[1728442592831,6.9357,144.19,144.15,24.2795]
[1728442593847,6.9357,144.19,144.15,25.66666114]
[1728442594863,6.9349,144.2,144.15,25.66666114]
[1728442596345,6.9344,144.21,144.16,6.9366]
[1728442596556,6.9335,144.23,144.17,18.7269177]
[1728442596853,6.9335,144.23,144.18,6.9354]
[1728442597054,6.9338,144.22,144.18,6.9354]
[1728442598433,6.9338,144.22,144.18,1.38695152]
[1728442598634,6.9343,144.21,144.17,24.276]
[1728442599459,6.9343,144.21,144.18,1.38698371]
[1728442600028,6.9343,144.21,144.17,24.276]
[1728442600975,6.9343,144.21,144.17,17.3399]
[1728442601952,6.9343,144.21,144.16,6.9365]
[1728442602159,6.935,144.2,144.16,6.9365]
[1728442603058,6.9344,144.21,144.16,6.9365]
[1728442604444,23.776884,144.24,144.14,39.6967]
[1728442604655,6.9356,144.19,144.14,46.6342]
[1728442605740,6.9361,144.18,144.14,39.6967]
[1728442605937,6.9361,144.18,144.14,33.1373]
[1728442606341,23.776884,144.22,144.14,33.1373]
[1728442606656,6.9362,144.17,144.14,15.7938]
[1728442606868,6.9362,144.17,144.14,17.18117338]
[1728442607848,6.9362,144.17,144.13,6.9377]
[1728442608048,6.9372,144.15,144.11,24.286]
[1728442608266,6.9372,144.15,144.11,17.347]
[1728442608979,6.9368,144.16,144.12,1.3875466]
[1728442609155,23.776884,144.19,144.11,24.2859]
[1728442609360,6.9372,144.15,144.11,17.347]
[1728442609775,6.9372,144.15,144.11,24.286]
[1728442609987,6.9366,144.17,144.11,24.286]
[1728442610279,6.9366,144.17,144.12,6.9386]
[1728442611488,6.9368,144.16,144.12,6.9386]
[1728442616284,6.9368,144.16,144.12,8.32614158]
[1728442616485,6.9364,144.17,144.12,8.32614158]
[1728442618990,6.9359,144.18,144.13,6.9381]
[1728442620966,6.9364,144.17,144.13,6.9381]
[1728442621892,6.9364,144.17,144.11,17.347]
[1728442622070,6.9364,144.17,144.12,6.9385]
[1728442625485,15.577,144.2,144.11,17.347]
[1728442625486,23.776884,144.19,144.11,17.347]
[1728442625700,6.9372,144.15,144.11,24.286]
[1728442625995,6.9366,144.17,144.12,6.9386]
[1728442626474,6.937,144.16,144.12,6.9386]
[1728442627305,6.937,144.16,144.11,24.286]
[1728442627596,6.937,144.16,144.11,25.67356932]
[1728442627793,6.937,144.16,144.12,6.9384]
[1728442627982,6.937,144.16,144.11,18.73456932]
[1728442627983,6.937,144.16,144.11,24.286]
[1728442628599,6.937,144.16,144.11,25.6735665]
[1728442628999,6.937,144.16,144.11,24.286]
[1728442630403,6.937,144.16,144.11,25.67357883]
[1728442631096,6.937,144.16,144.11,24.286]
[1728442631906,17.3387,144.19,144.11,24.286]
[1728442632195,6.9373,144.15,144.11,24.286]
[1728442633299,6.9368,144.16,144.12,8.32618695]
[1728442633507,6.9368,144.16,144.12,6.9386]
[1728442634303,6.9368,144.16,144.11,17.347]
[1728442634491,6.9368,144.16,144.11,24.286]
[1728442634694,17.3387,144.19,144.11,24.286]
[1728442634883,6.9372,144.15,144.11,24.286]
[1728442637176,6.9377,144.14,144.11,17.347]
[1728442637375,6.9377,144.14,144.1,22.9273964]
[1728442639107,6.9377,144.14,144.1,7.7073964]
[1728442639316,6.9385,144.13,144.1,0.7678964]
[1728442640304,6.9387,144.12,144.1,0.7678964]
[1728442641211,6.9391,144.11,144.1,0.7678964]
[1728442644079,30.715984,144.11,144.1,0.7678964]
[1728442644695,46.235684,144.11,144.1,0.7678964]
[1728442647281,22.4588,144.11,144.1,0.7678964]
[1728442648188,6.9391,144.11,144.1,0.7678964]
[1728442648498,6.9386,144.12,144.1,0.7678964]
[1728442652206,6.9382,144.13,144.1,0.7678964]
[1728442652605,6.9387,144.12,144.1,0.7678964]
[1728442654594,15.3614,144.15,144.1,0.7678964]
[1728442654795,6.9383,144.13,144.1,0.7678964]
[1728442655006,6.9387,144.12,144.1,0.74357766]
[1728442656111,6.9391,144.11,144.1,0.74357766]
[1728442659200,15.3614,144.15,144.1,0.74357766]
[1728442659405,6.9386,144.12,144.1,0.74357766]
[1728442659909,6.9391,144.11,144.1,0.74357766]
[1728442661111,15.3614,144.15,144.1,0.74357766]
[1728442661425,6.9387,144.12,144.1,0.74357766]
[1728442662117,15.3614,144.15,144.1,0.74357766]
[1728442662118,6.9391,144.11,144.1,0.74357766]
[1728442663719,15.3614,144.15,144.1,0.74357766]
[1728442663901,6.9387,144.12,144.1,0.74357766]
[1728442664439,15.3614,144.15,144.11,6.9391]
[1728442664440,6.9373,144.15,144.11,6.9391]
[1728442664720,6.9367,144.16,144.12,6.9385]
[1728442664912,6.9372,144.15,144.1,18.09197766]
[1728442665111,6.9377,144.14,144.1,25.03147766]
[1728442666320,6.9373,144.15,144.1,25.03147766]
[1728442666903,16.4888,144.19,144.1,0.74357766]
[1728442667105,6.9382,144.13,144.1,0.74357766]
[1728442667705,6.9378,144.14,144.1,0.74357766]
[1728442668026,6.9378,144.14,144.1,7.68307766]
[1728442668326,6.9378,144.14,144.1,9.07078518]
[1728442668499,6.9371,144.16,144.11,6.9391]
[1728442669095,6.9373,144.15,144.1,7.68307766]
[1728442670417,6.9368,144.16,144.11,6.9388]
[1728442672912,6.9373,144.15,144.11,6.9388]
[1728442674332,6.9373,144.15,144.1,0.74357766]
[1728442674515,6.9373,144.15,144.1,7.68307766]
[1728442675208,6.9377,144.14,144.1,7.68307766]
[1728442679229,6.9377,144.14,144.1,0.74357766]
[1728442679431,6.9382,144.13,144.1,0.74357766]
[1728442679607,17.3411,144.17,144.1,0.74357766]
[1728442680411,6.9381,144.14,144.1,0.74357766]
[1728442682138,6.9382,144.13,144.1,0.74357766]
[1728442685211,6.9376,144.15,144.1,7.68297766]
[1728442685420,17.3411,144.17,144.1,7.68297766]
[1728442685734,6.9377,144.14,144.1,7.68297766]
[1728442686121,6.9377,144.14,144.1,0.74357766]
[1728442686429,17.3411,144.17,144.1,0.74357766]
[1728442686624,6.9382,144.13,144.1,0.74357766]
[1728442687828,6.9388,144.12,144.1,0.74357766]
[1728442688214,6.9382,144.13,144.1,0.74357766]
[1728442692940,6.9368,144.16,144.1,0.74357766]
[1728442693246,6.9368,144.16,144.12,6.9386]
[1728442695545,6.9368,144.16,144.11,6.939]
[1728442696042,6.9373,144.15,144.11,6.939]
[1728442698140,6.9373,144.15,144.1,0.74357766]
[1728442698447,16.4888,144.19,144.1,7.68307766]
[1728442698749,6.9377,144.14,144.1,7.68307766]
[1728442698946,6.9377,144.14,144.11,1.38768186]
[1728442699120,6.9377,144.14,144.1,7.68307766]
[1728442699444,6.9381,144.13,144.1,0.74357766]
[1728442702945,6.9386,144.12,144.1,0.74357766]
[1728442706446,6.9383,144.13,144.1,0.74357766]
[1728442707444,6.9388,144.12,144.1,0.74357766]
[1728442707643,17.3426,144.16,144.1,0.74357766]
[1728442707850,6.9385,144.13,144.1,0.74357766]
[1728442708230,6.9388,144.12,144.1,0.74357766]
[1728442712046,6.9391,144.11,144.1,0.74357766]
[1728442720655,30.715984,144.11,144.1,0.74357766]
[1728442721361,6.9416,144.06,144.0,17.3606]
[1728442721572,6.9407,144.08,144.03,6.9428]
[1728442722073,6.9412,144.07,144.03,6.9428]
[1728442723151,6.9396,144.1,144.05,6.9415]
[1728442723453,17.3457,144.13,144.04,45.8689]
[1728442723454,6.9401,144.09,144.04,45.8689]
[1728442723856,6.9401,144.09,144.05,6.9419]
[1728442724156,6.9401,144.09,144.04,45.8688]
[1728442727862,6.9406,144.08,144.04,45.8688]
[1728442730669,6.9406,144.08,144.04,38.9265]
[1728442730966,6.9411,144.07,144.04,38.9265]
[1728442732365,23.776884,144.12,144.04,38.9265]
[1728442732544,6.9406,144.08,144.04,40.31477297]
[1728442732843,6.9406,144.08,144.04,45.8687]
[1728442736670,6.9406,144.08,144.04,38.9265]
[1728442748973,6.9411,144.07,144.04,38.9265]
[1728442754369,6.9411,144.07,144.04,21.571]
[1728442754959,6.9406,144.08,144.05,1.38821596]
[1728442755970,6.9406,144.08,144.04,28.5135]
[1728442756278,6.9406,144.08,144.05,1.38819359]
[1728442756457,6.9406,144.08,144.04,28.5135]
[1728442756660,6.9406,144.08,144.04,29.90169398]
[1728442756978,17.3482,144.11,144.04,22.95919398]
[1728442757184,6.9401,144.09,144.05,6.942]
[1728442757481,6.9401,144.09,144.06,1.38810789]
[1728442758384,6.9401,144.09,144.05,6.942]
[1728442758565,6.9409,144.08,144.04,21.571]
[1728442758962,6.941,144.07,144.04,21.571]
[1728442759362,6.941,144.07,144.05,1.38820158]
[1728442759682,6.941,144.07,144.04,15.5682]
[1728442761685,6.941,144.07,144.03,24.2998]
[1728442762069,23.776884,144.11,144.03,17.357]
[1728442762274,6.9416,144.06,144.03,18.74538983]
[1728442762967,6.9411,144.07,144.03,25.68828983]
[1728442763167,6.9411,144.07,144.03,24.2999]
[1728442763479,6.9415,144.06,144.04,1.38827778]
[1728442764587,6.9412,144.07,144.04,1.38827778]
[1728442764885,6.9412,144.07,144.03,17.357]
[1728442765467,6.9412,144.07,144.04,1.38831777]
[1728442766270,6.9412,144.07,144.03,17.357]
[1728442770787,6.9412,144.07,144.04,1.38832816]
[1728442773993,6.9412,144.07,144.03,17.357]
[1728442774990,6.9412,144.07,144.04,1.38832289]
[1728442775688,6.9407,144.08,144.04,1.38832289]
[1728442776279,6.9407,144.08,144.04,8.33062289]
[1728442778791,6.9407,144.08,144.04,6.9423]
[1728442785680,6.9407,144.08,144.03,17.357]
[1728442785886,6.9407,144.08,144.03,24.2998]
[1728442786086,6.9411,144.07,144.03,24.2998]
[1728442790587,39.5776,144.12,144.03,17.357]
[1728442790782,6.9415,144.06,144.03,17.357]
[1728442797400,6.9415,144.06,144.04,1.38832112]
[1728442797601,6.9415,144.06,144.03,17.357]
[1728442798402,6.9411,144.07,144.04,1.38832143]
[1728442798602,6.9411,144.07,144.03,24.2997]
[1728442801789,6.9417,144.06,144.02,6.9433]
[1728442801989,17.3502,144.09,144.0,46.0127]
[1728442802290,6.9424,144.05,144.0,46.0127]
[1728442803004,6.9424,144.05,144.01,1.38846303]
[1728442803189,6.9424,144.05,144.01,8.33216303]
[1728442803385,6.9406,144.08,144.04,6.9425]
[1728442803588,34.89991699,144.11,144.07,6.9409]
[1728442803589,6.9391,144.11,144.07,6.9409]
[1728442803799,28.18311611,144.12,144.08,1.38796094]
[1728442803800,6.9387,144.12,144.08,1.38796094]
[1728442804702,6.9387,144.12,144.07,6.9409]
[1728442804911,6.9392,144.11,144.07,6.9409]
[1728442806216,17.3462,144.13,144.04,29.4615]
[1728442806396,6.9406,144.08,144.04,29.4615]
[1728442806995,17.3462,144.13,144.04,29.4615]
[1728442807499,6.9406,144.08,144.04,29.4615]
[1728442807698,23.776884,144.14,144.0,17.3604]
[1728442807699,16.5343,144.1,144.0,17.3604]
[1728442808318,6.9421,144.05,144.0,24.3047]
[1728442808817,6.9421,144.05,144.01,8.33225419]
[1728442809328,6.9416,144.06,144.02,6.9434]
[1728442809616,6.9416,144.06,144.03,1.38842592]
[1728442809812,17.3512,144.09,144.03,1.38842592]
[1728442810012,6.9411,144.07,144.03,1.38842592]
[1728442810905,6.9406,144.08,144.04,6.9423]
[1728442811119,6.9406,144.08,144.03,6.9429]
[1728442811294,6.9406,144.08,144.03,6.9428]
[1728442811814,16.5343,144.1,144.02,24.3016]
[1728442811815,6.9416,144.06,144.02,24.3016]
[1728442812998,16.5343,144.1,144.02,17.3582]
[1728442813204,6.942,144.05,144.02,17.3582]
[1728442814905,6.9415,144.07,144.03,6.9429]
[1728442815220,6.9415,144.07,144.02,24.3016]
[1728442816120,6.9415,144.07,144.03,1.38836562]
[1728442816330,33.8842,144.1,144.02,24.3016]
[1728442816631,6.9417,144.06,144.02,24.3016]
[1728442817202,6.9417,144.06,144.03,1.38840376]
[1728442817715,6.942,144.05,144.02,17.3582]
[1728442817922,33.8842,144.1,144.03,1.38840291]
[1728442817923,16.5343,144.1,144.03,1.38840291]
[1728442818120,6.3242,144.11,144.03,1.38840291]
[1728442818121,6.9401,144.09,144.05,6.9419]
[1728442818320,6.9407,144.08,144.03,6.9428]
[1728442818652,6.9413,144.07,144.03,6.9428]
[1728442819229,6.9416,144.06,144.02,24.3016]
[1728442822406,15.5996,144.08,144.0,6.9443]
[1728442822615,6.9429,144.04,143.99,22.2946]
[1728442824030,6.9429,144.04,144.0,8.33296637]
[1728442824839,6.9429,144.04,144.0,6.9444]
[1728442825222,6.9429,144.04,144.01,1.38858053]
[1728442825518,6.942,144.06,144.01,1.38858053]
[1728442825910,6.942,144.06,144.01,8.33238053]
[1728442826829,6.9412,144.07,144.03,6.9428]
[1728442827034,6.9412,144.07,144.04,1.38835232]
[1728442827711,6.9412,144.07,144.03,1.38835487]
[1728442829028,6.9412,144.07,144.02,6.9433]
[1728442829210,6.9407,144.08,144.03,8.3308486]
[1728442830312,6.9407,144.08,144.03,6.9426]
[1728442830716,6.9407,144.08,144.04,1.38824713]
[1728442830922,6.9407,144.08,144.03,6.9426]
[1728442831111,6.9407,144.08,144.04,1.38824884]
[1728442831612,6.9407,144.08,144.03,6.9426]
[1728442831837,6.9407,144.08,144.04,1.38824476]
[1728442832035,6.9407,144.08,144.03,6.9426]
[1728442832333,6.9407,144.08,144.04,1.38823487]
[1728442833228,6.9407,144.08,144.03,6.9426]
[1728442833731,6.9407,144.08,144.04,1.38824493]
[1728442834309,6.9407,144.08,144.03,6.9426]
[1728442834814,6.9402,144.09,144.04,6.9424]
[1728442835634,6.9402,144.09,144.05,1.38815359]
[1728442835816,6.9397,144.1,144.05,6.9419]
[1728442836942,6.9402,144.09,144.04,24.298]
[1728442837434,6.9402,144.09,144.05,1.38814707]
[1728442838139,6.9402,144.09,144.04,24.298]
[1728442840042,6.9402,144.09,144.05,1.3881491]
[1728442840222,6.9397,144.1,144.05,6.9419]
[1728442840417,6.9401,144.09,144.04,24.298]
[1728442841627,6.9401,144.09,144.05,1.38815376]
[1728442841935,6.9401,144.09,144.04,24.298]
[1728442842651,15.421,144.12,144.05,1.38814879]
[1728442842652,6.9397,144.1,144.05,1.38814879]
[1728442842853,6.9397,144.1,144.06,6.9413]
[1728442843025,6.9397,144.1,144.07,1.38799385]
[1728442843540,6.9392,144.11,144.07,6.9409]
[1728442843748,6.9396,144.1,144.06,6.9414]
[1728442844448,6.939,144.12,144.07,8.32867272]
[1728442844835,6.9392,144.11,144.07,6.9407]
[1728442851542,6.9392,144.11,144.06,17.353]
[1728442851847,6.9392,144.11,144.06,24.2943]
[1728442853248,6.9392,144.11,144.06,25.68220173]
[1728442854651,6.9392,144.11,144.06,24.2943]
[1728442854850,6.9392,144.11,144.07,1.3878787]
[1728442858751,6.9392,144.11,144.06,24.2943]
[1728442860765,6.9392,144.11,144.06,25.68218158]
[1728442861344,6.9392,144.11,144.06,24.2943]
[1728442862466,6.9392,144.11,144.07,8.32879399]
[1728442863344,9.74087903,144.17,144.08,18.73878202]
[1728442863345,7.05185778,144.17,144.08,18.73878202]
[1728442863545,6.9368,144.16,144.11,6.9386]
[1728442863741,6.9358,144.18,144.13,6.938]
[1728442863943,6.9358,144.18,144.14,1.38731252]
[1728442864864,6.9358,144.18,144.13,6.938]
[1728442866345,6.9363,144.17,144.12,24.2845]
[1728442869361,15.5308,144.19,144.13,1.38731479]
[1728442869553,6.9357,144.18,144.13,6.9378]
[1728442870155,6.9357,144.18,144.14,8.32468871]
[1728442870750,6.9357,144.18,144.14,6.9375]
[1728442871067,6.9354,144.19,144.15,1.38719832]
[1728442873974,15.1083,144.22,144.15,8.32429832]
[1728442874156,6.9348,144.2,144.15,8.32429832]
[1728442875250,6.9354,144.19,144.15,6.9371]
[1728442875446,6.9363,144.17,144.12,6.9385]
[1728442875667,6.9359,144.18,144.13,6.9377]
[1728442876052,6.9354,144.19,144.14,6.9375]
[1728442877369,15.1083,144.22,144.13,17.3448]
[1728442877571,6.9361,144.18,144.13,24.2825]